fUST/lending_fUST_20240117
["ID","MTS","AMOUNT","RATE_DAILY","PERIOD"]
[311914350,1705498244880,-1460.87,0.00022054,2]
[311914351,1705498244890,-500.0,0.00022054,2]
[311914352,1705498244899,-500.0,0.00022054,2]
[311914353,1705498244910,-500.0,0.00022054,2]
[311914354,1705498244919,-895.27,0.00022054,2]
[311914355,1705498244929,-500.0,0.00022054,2]
[311914356,1705498244939,-500.0,0.00022054,2]
[311914357,1705498244949,-500.0,0.00022054,2]
[311914358,1705498244958,-1840.68,0.00022054,2]
[311914359,1705498244968,-500.0,0.00022054,2]
[311914360,1705498244977,-500.0,0.00022054,2]
[311914361,1705498244986,-889.53,0.00022054,2]
[311914362,1705498244995,-230.02217805,0.00022054,2]
[311914363,1705498245004,-500.0,0.00022054,2]
[311914364,1705498245014,-500.0,0.00022054,2]
[311914365,1705498245023,-500.0,0.00022054,2]
[311914366,1705498245032,-500.0,0.00022054,2]
[311914367,1705498245041,-500.0,0.00022054,2]
[311914368,1705498245050,-500.0,0.00022054,2]
[311914369,1705498245060,-500.0,0.00022054,2]
[311914370,1705498245069,-500.0,0.00022054,2]
[311914371,1705498245079,-1769.13,0.00022054,2]
[311914372,1705498245088,-500.0,0.00022054,2]
[311914373,1705498245097,-2323.22,0.00022054,2]
[311914374,1705498245106,-500.0,0.00022054,2]
[311914375,1705498245115,-1370.98,0.00022054,2]
[311914376,1705498245125,-500.0,0.00022054,2]
[311914377,1705498245134,-500.0,0.00022054,5]
[311914378,1705498245143,-2878.37,0.00022054,2]
[311914379,1705498245153,-16471.26,0.00022054,2]
[311914380,1705498245162,-500.0,0.00022054,2]
[311914381,1705498245171,-500.0,0.00022054,2]
[311914382,1705498245181,-1887.89,0.00022054,2]
[311914383,1705498245190,-720.36,0.00022054,2]
[311914384,1705498245201,-500.0,0.00022054,2]
[311914385,1705498245211,-850.43,0.00022054,2]
[311914386,1705498245220,-500.0,0.00022054,2]
[311914387,1705498245230,-500.0,0.00022054,2]
[311914388,1705498245239,-500.0,0.00022054,2]
[311914389,1705498245248,-16398.69,0.00022054,2]
[311914390,1705498245257,-500.0,0.00022054,2]
[311914391,1705498245267,-500.0,0.00022054,2]
[311914392,1705498245277,-500.0,0.00022054,2]
[311914393,1705498245297,-500.0,0.00022054,2]
[311914394,1705498245315,-500.0,0.00022054,2]
[311914395,1705498245338,-500.0,0.00022054,2]
[311914396,1705498245357,-500.0,0.00022054,2]
[311914397,1705498245378,-633.85,0.00022054,2]
[311914398,1705498245400,-500.0,0.00022054,2]
[311914399,1705498245420,-550.0,0.00022054,2]
[311914401,1705498245440,-500.0,0.00022054,2]
[311914402,1705498245450,-500.0,0.00022054,2]
[311914404,1705498245459,-500.0,0.00022054,2]
[311914406,1705498245469,-500.0,0.00022054,2]
[311914408,1705498245479,-226.6921614,0.00022054,2]
[311914409,1705498245489,-2709.79,0.00022054,2]
[311914410,1705498245499,-506.24672197,0.00022054,2]
[311914412,1705498245509,-1068.65134143,0.00022054,2]
[311914415,1705498245523,-209.73633126,0.00022054,2]
[311914416,1705498245533,-811.07,0.00022054,2]
[311914419,1705498245543,-500.0,0.00022054,2]
[311914421,1705498245552,-714.51,0.00022054,2]
[311914423,1705498245561,-500.0,0.00022054,2]
[311914425,1705498245570,-357.88867272,0.00022054,2]
[311914426,1705498245579,-159.14815525,0.00022054,2]
[311914428,1705498245588,-174.74456145,0.00022054,2]
[311914429,1705498245598,-1704.36,0.00022054,2]
[311914430,1705498245607,-500.0,0.00022054,2]
[311914431,1705498245617,-500.0,0.00022054,2]
[311914432,1705498245626,-566.7,0.00022054,2]
[311914433,1705498245635,-500.0,0.00022054,2]
[311914434,1705498245644,-500.0,0.00022054,2]
[311914435,1705498245653,-6375.29,0.00022054,2]
[311914436,1705498245662,-500.0,0.00022054,2]
[311914437,1705498245672,-500.0,0.00022054,2]
[311914438,1705498245681,-29533.24,0.00022054,2]
[311914439,1705498245690,-7675.54,0.00022054,2]
[311914440,1705498245700,-500.0,0.00022054,2]
[311914441,1705498245709,-500.0,0.00022054,2]
[311914442,1705498245718,-552.23,0.00022054,2]
[311914444,1705498245727,-500.0,0.00022054,2]
[311914446,1705498245737,-500.0,0.00022054,2]
[311914448,1705498245746,-9451.51,0.00022054,2]
[311914449,1705498245755,-822.27,0.00022054,2]
[311914450,1705498245764,-500.0,0.00022054,2]
[311914451,1705498245774,-500.0,0.00022054,2]
[311914453,1705498245783,-500.0,0.00022054,2]
[311914454,1705498245792,-500.0,0.00022054,2]
[311914455,1705498245801,-500.0,0.00022054,2]
[311914456,1705498245810,-500.0,0.00022054,2]
[311914457,1705498245820,-500.0,0.00022054,2]
[311914458,1705498245829,-500.0,0.00022054,2]
[311914459,1705498245838,-500.0,0.00022054,2]
[311914460,1705498245847,-500.0,0.00022054,2]
[311914461,1705498245857,-3039.18,0.00022054,2]
[311914462,1705498245867,-2927.53,0.00022054,2]
[311914463,1705498245878,-500.0,0.00022054,2]
[311914464,1705498245890,-366.65755106,0.00022054,2]
[311914465,1705498245899,-500.0,0.00022054,2]
[311914466,1705498245908,-1287.18,0.0002219,2]
[311914467,1705498245918,-1287.18,0.0002219,2]
[311914468,1705498245931,-1287.18,0.0002219,2]
[311914469,1705498245940,-1287.18,0.0002219,2]
[311914471,1705498245952,-1287.38198326,0.0002219,2]
[311914473,1705498245962,-151.0,0.00022191,2]
[311914475,1705498245971,-190.558244,0.00022191,2]
[311914476,1705498245981,-190.558244,0.00022191,2]
[311914478,1705498245990,-190.558244,0.00022191,2]
[311914480,1705498245998,-190.558244,0.00022191,2]
[311914482,1705498246008,-280.299485,0.00022191,2]
[311914484,1705498246017,-280.299485,0.00022191,2]
[311914486,1705498246026,-280.299485,0.00022191,2]
[311914488,1705498246035,-280.299485,0.00022191,2]
[311914490,1705498246044,-500.0,0.00022191,2]
[311914492,1705498246053,-500.0,0.00022191,2]
[311914494,1705498246062,-500.0,0.00022191,2]
[311914496,1705498246071,-500.0,0.00022191,2]
[311914498,1705498246080,-500.0,0.00022191,2]
[311914501,1705498246089,-500.0,0.00022191,2]
[311914504,1705498246098,-500.0,0.00022191,2]
[311914507,1705498246107,-500.0,0.00022191,2]
[311914510,1705498246117,-500.0,0.00022191,2]
[311914513,1705498246127,-500.0,0.00022191,2]
[311914516,1705498246136,-500.0,0.00022191,2]
[311914518,1705498246145,-506.36136308,0.00022191,2]
[311914520,1705498246154,-500.0,0.00022191,2]
[311914522,1705498246163,-500.0,0.00022191,2]
[311914524,1705498246171,-500.0,0.00022191,2]
[311914526,1705498246180,-500.0,0.00022191,2]
[311914528,1705498246189,-785.03,0.00022191,2]
[311914530,1705498246200,-500.0,0.00022191,2]
[311914532,1705498246209,-500.0,0.00022191,2]
[311914534,1705498246218,-500.0,0.00022191,2]
[311914536,1705498246227,-500.0,0.00022191,2]
[311914538,1705498246236,-500.0,0.00022191,2]
[311914540,1705498246245,-500.0,0.00022191,2]
[311914542,1705498246254,-500.0,0.00022191,2]
[311914544,1705498246263,-500.0,0.00022191,2]
[311914545,1705498246272,-1028.83,0.00022191,2]
[311914547,1705498246282,-500.0,0.00022191,2]
[311914548,1705498246291,-500.0,0.00022191,2]
[311914550,1705498246301,-2253.36,0.00022191,2]
[311914551,1705498246310,-500.0,0.00022191,2]
[311914552,1705498246383,-500.0,0.00022191,2]
[311914553,1705498246394,-364.85779853,0.00022191,2]
[311914554,1705498246405,-500.0,0.00022191,2]
[311914555,1705498246414,-3134.74,0.00022191,2]
[311914556,1705498246423,-500.0,0.00022191,2]
[311914557,1705498246432,-500.0,0.00022191,2]
[311914558,1705498246441,-500.0,0.00022191,2]
[311914559,1705498246451,-500.0,0.00022191,2]
[311914560,1705498246460,-515.5,0.00022191,2]
[311914561,1705498246469,-500.0,0.00022191,2]
[311914562,1705498246477,-500.0,0.00022191,2]
[311914563,1705498246486,-389.81459753,0.00022191,2]
[311914564,1705498246496,-500.0,0.00022191,2]
[311914565,1705498246505,-500.0,0.00022191,2]
[311914566,1705498246514,-500.0,0.00022191,2]
[311914567,1705498246523,-500.0,0.00022191,2]
[311914568,1705498246532,-500.0,0.00022191,2]
[311914569,1705498246541,-500.0,0.00022191,2]
[311914570,1705498246550,-500.0,0.00022191,2]
[311914571,1705498246559,-612.65,0.00022191,2]
[311914572,1705498246568,-500.0,0.00022191,2]
[311914573,1705498246578,-500.0,0.00022191,2]
[311914574,1705498246587,-500.0,0.00022191,2]
[311914575,1705498246596,-535.84483329,0.00022191,2]
[311914576,1705498246605,-699.55,0.00022191,2]
[311914577,1705498246614,-267.81115023,0.00022191,2]
[311914578,1705498246622,-500.0,0.00022191,2]
[311914579,1705498246632,-500.0,0.00022191,2]
[311914580,1705498246641,-500.0,0.00022191,2]
[311914581,1705498246650,-1240.24,0.00022191,2]
[311914582,1705498246659,-500.0,0.00022191,2]
[311914583,1705498246668,-500.0,0.00022191,2]
[311914584,1705498246677,-500.0,0.00022191,2]
[311914585,1705498246686,-500.0,0.00022191,2]
[311914586,1705498246695,-500.0,0.00022191,2]
[311914587,1705498246705,-429.95876673,0.00022191,2]
[311914588,1705498246714,-540.7180897,0.00022191,2]
[311914589,1705498246723,-500.0,0.00022191,2]
[311914590,1705498246734,-500.0,0.00022191,2]
[311914591,1705498246743,-609.55,0.00022191,2]
[311914592,1705498246753,-500.0,0.00022191,2]
[311914593,1705498246763,-500.0,0.00022191,2]
[311914594,1705498246773,-500.0,0.00022191,2]
[311914595,1705498246782,-500.0,0.00022191,2]
[311914596,1705498246791,-945.69,0.00022191,2]
[311914597,1705498246800,-500.0,0.00022191,2]
[311914598,1705498246810,-1453.81,0.00022191,2]
[311914599,1705498246819,-398.41303084,0.00022191,2]
[311914600,1705498246829,-500.0,0.00022191,2]
[311914601,1705498246838,-500.0,0.00022191,2]
[311914602,1705498246848,-500.0,0.00022191,2]
[311914603,1705498246857,-500.0,0.00022191,2]
[311914604,1705498246868,-500.0,0.00022191,2]
[311914605,1705498246877,-500.0,0.00022191,2]
[311914606,1705498246887,-500.0,0.00022191,2]
[311914607,1705498246896,-500.0,0.00022191,2]
[311914608,1705498246905,-514.29,0.00022191,2]
[311914609,1705498246915,-813.45,0.00022191,2]
[311914610,1705498246925,-7280.28,0.00022191,2]
[311914611,1705498246935,-500.0,0.00022191,2]
[311914612,1705498246945,-845.75,0.00022191,2]
[311914613,1705498246957,-1722.71,0.00022191,2]
[311914614,1705498246966,-500.0,0.00022191,2]
[311914615,1705498246976,-500.0,0.00022191,2]
[311914616,1705498246985,-201.66657356,0.00022191,2]
[311914617,1705498246994,-500.0,0.00022191,2]
[311914618,1705498247003,-1460.87,0.00022191,2]
[311914619,1705498247012,-500.0,0.00022191,2]
[311914620,1705498247021,-500.0,0.00022191,2]
[311914621,1705498247030,-500.0,0.00022191,2]
[311914622,1705498247040,-895.27,0.00022191,2]
[311914623,1705498247049,-322.25229753,0.00022191,2]
[311914624,1705498247058,-500.0,0.00022191,2]
[311914625,1705498247067,-500.0,0.00022191,2]
[311914626,1705498247076,-1840.68,0.00022191,2]
[311914627,1705498247085,-434.48775725,0.00022191,2]
[311914628,1705498247094,-500.0,0.00022191,2]
[311914629,1705498247104,-889.53,0.00022191,2]
[311914630,1705498247114,-500.0,0.00022191,2]
[311914631,1705498247122,-500.0,0.00022191,2]
[311914632,1705498247131,-500.0,0.00022191,2]
[311914633,1705498247141,-500.0,0.00022191,2]
[311914634,1705498247150,-500.0,0.00022191,2]
[311914635,1705498247159,-500.0,0.00022191,2]
[311914636,1705498247168,-500.0,0.00022191,2]
[311914637,1705498247178,-500.0,0.00022191,2]
[311914638,1705498247187,-1769.13,0.00022191,2]
[311914639,1705498247196,-500.0,0.00022191,2]
[311914640,1705498247206,-2323.22,0.00022191,2]
[311914641,1705498247215,-500.0,0.00022191,2]
[311914642,1705498247224,-1370.98,0.00022191,2]
[311914643,1705498247234,-500.0,0.00022191,2]
[311914644,1705498247243,-501.70820656,0.00022191,5]
[311914645,1705498247252,-2878.37,0.00022191,2]
[311914646,1705498247261,-16471.26,0.00022191,2]
[311914647,1705498247270,-500.0,0.00022191,2]
[311914648,1705498247280,-500.0,0.00022191,2]
[311914649,1705498247289,-1887.89,0.00022191,2]
[311914650,1705498247299,-720.36,0.00022191,2]
[311914651,1705498247308,-241.37531993,0.00022191,2]
[311914652,1705498247317,-850.43,0.00022191,2]
[311914653,1705498247327,-500.0,0.00022191,2]
[311914654,1705498247336,-500.0,0.00022191,2]
[311914655,1705498247345,-500.0,0.00022191,2]
[311914656,1705498247355,-16398.69,0.00022191,2]
[311914657,1705498247364,-500.0,0.00022191,2]
[311914658,1705498247373,-600.88725899,0.00022191,2]
[311914659,1705498247383,-500.0,0.00022191,2]
[311914660,1705498247392,-122.30560053,0.00022191,2]
[311914661,1705498247575,-377.69439947,0.00022191,2]
[311914662,1705498247584,-500.0,0.00022191,2]
[311914663,1705498247594,-500.0,0.00022191,2]
[311914664,1705498247603,-500.0,0.00022191,2]
[311914665,1705498247612,-633.85,0.00022191,2]
[311914666,1705498247621,-374.69803746,0.00022191,2]
[311914667,1705498247632,-125.30196254,0.00022191,2]
[311914668,1705498247642,-500.0,0.00022191,2]
[311914669,1705498247651,-500.0,0.00022191,2]
[311914670,1705498247660,-465.35602054,0.00022191,2]
[311914671,1705498247670,-500.0,0.00022191,2]
[311914672,1705498247679,-2709.79,0.00022191,2]
[311914673,1705498247688,-811.07,0.00022191,2]
[311914674,1705498247699,-500.0,0.00022191,2]
[311914675,1705498247709,-714.51,0.00022191,2]
[311914676,1705498247718,-500.0,0.00022191,2]
[311914677,1705498247728,-1704.36,0.00022191,2]
[311914678,1705498247738,-500.0,0.00022191,2]
[311914679,1705498247747,-500.0,0.00022191,2]
[311914680,1705498247757,-566.7,0.00022191,2]
[311914681,1705498247767,-500.0,0.00022191,2]
[311914682,1705498247778,-500.0,0.00022191,2]
[311914683,1705498247787,-6375.29,0.00022191,2]
[311914684,1705498247796,-508.30920079,0.00022191,2]
[311914685,1705498247805,-547.15371215,0.00022191,2]
[311914686,1705498247814,-23341.10076574,0.00022191,2]
[311914687,1705498247825,-1299.30570456,0.00022191,2]
[311914688,1705498248024,-500.0,0.000211,2]
[311914689,1705498248035,-899.03,0.00021917,2]
[311914690,1705498248045,-140.30850389,0.00021917,2]
[311914691,1705498248156,-3305.11997456,0.00021905,3]
[311914692,1705498248167,-2611.45002544,0.00021905,3]
[311914693,1705498248176,-359.69149611,0.00021917,2]
[311914694,1705498248186,-500.0,0.00021917,2]
[311914695,1705498248195,-500.0,0.00021917,2]
[311914696,1705498248206,-899.03,0.00022054,2]
[311914697,1705498248215,-500.0,0.00022054,2]
[311914698,1705498248224,-4892.8335297,0.00022191,2]
[311914699,1705498248233,-7675.54,0.00022191,2]
[311914700,1705498248243,-500.0,0.00022191,2]
[311914701,1705498248252,-505.10395311,0.00022191,2]
[311914702,1705498248261,-552.23,0.00022191,2]
[311914703,1705498248270,-500.0,0.00022191,2]
[311914704,1705498248280,-500.0,0.00022191,2]
[311914705,1705498248289,-9451.51,0.00022191,2]
[311914706,1705498248298,-822.27,0.00022191,2]
[311914707,1705498248307,-500.0,0.00022191,2]
[311914708,1705498248316,-500.0,0.00022191,2]
[311914709,1705498248326,-500.0,0.00022191,2]
[311914710,1705498248335,-500.0,0.00022191,2]
[311914711,1705498248345,-522.58503635,0.00022191,2]
[311914712,1705498248355,-500.0,0.00022191,2]
[311914713,1705498248366,-500.0,0.00022191,2]
[311914714,1705498248375,-325.42261473,0.00022191,2]
[311914715,1705498248386,-500.0,0.00022191,2]
[311914716,1705498248396,-500.0,0.00022191,2]
[311914717,1705498248407,-3039.18,0.00022191,2]
[311914718,1705498248417,-2927.53,0.00022191,2]
[311914719,1705498248427,-500.0,0.00022191,2]
[311914720,1705498248437,-500.0,0.00022191,2]
[311914721,1705498248448,-899.03,0.00022191,2]
[311914722,1705498248457,-500.0,0.00022191,2]
[311914723,1705498248467,-6253.4729554,0.00022221,2]
[311914724,1705498248477,-620.00038602,0.00022241,2]
[311914725,1705498248488,-1351.51428607,0.00022327,2]
[311914726,1705498248498,-151.0,0.00022328,2]
[311914727,1705498248510,-190.558244,0.00022328,2]
[311914728,1705498248520,-190.558244,0.00022328,2]
[311914729,1705498248529,-190.558244,0.00022328,2]
[311914730,1705498248539,-190.558244,0.00022328,2]
[311914731,1705498248549,-280.299485,0.00022328,2]
[311914732,1705498248558,-280.299485,0.00022328,2]
[311914733,1705498248568,-280.299485,0.00022328,2]
[311914734,1705498248578,-280.299485,0.00022328,2]
[311914735,1705498248590,-372.09874171,0.00022328,2]
[311914741,1705498816226,1438.37428973,0.00019992,5]
[311914753,1705499051878,195.995406,0.00018824,2]
[311914783,1705499173470,150.0,0.000231,30]
[311914845,1705499433559,-154.9690062,0.00019607,3]
[311914846,1705499433569,-154.9690062,0.00019608,2]
[311914847,1705499433578,-59.20058394,0.00019608,2]
[311914848,1705499433590,-584.60932881,0.00019608,2]
[311914849,1705499433600,-154.9690062,0.00019608,2]
[311914850,1705499433610,-154.9690062,0.00019609,2]
[311914851,1705499433620,-1380.29192617,0.00019624,2]
[311914852,1705499433631,-290.34519337,0.00019684,2]
[311914853,1705499433641,-36931.7299546,0.00019776,2]
[311914854,1705499433651,-19683.9294639,0.00019777,2]
[311914855,1705499433661,-1986.07008117,0.00019784,2]
[311914856,1705499433671,-13440.22,0.0001998,3]
[311914857,1705499433681,-154.9690062,0.00019986,2]
[311914858,1705499433690,-154.9690062,0.00019986,2]
[311914859,1705499433699,-154.9690062,0.00019986,2]
[311914860,1705499433709,-2101.24804165,0.0001999,2]
[311914861,1705499433718,-8215.20494395,0.0001999,3]
[311914902,1705499438725,-303.84522028,0.00019607,2]
[311914910,1705499438786,-383.51643783,0.00019607,2]
[311914912,1705499438795,-2502.7259991,0.0001997,3]
[311915161,1705499441127,-339.64638281,0.0001997,3]
[311915164,1705499441138,-8357.80761809,0.0001997,3]
[311915166,1705499441147,-662.95505605,0.0001999,3]
[311915167,1705499441157,-973.16882197,0.00019996,2]
[311915168,1705499441168,-1098.52745603,0.00019996,2]
[311915169,1705499441177,-849.41831623,0.0002,2]
[311915170,1705499441185,-820.68739345,0.0002,2]
[311915171,1705499441196,-349.536825,0.0002,2]
[311915375,1705499443205,-26.4894154,0.0002,2]
[311915377,1705499443215,-1265.41823027,0.0002,2]
[311915379,1705499443225,-213.2259526,0.0002,2]
[311915381,1705499443235,-264.80538902,0.0002008,2]
[311915383,1705499443249,-21.20049151,0.0002008,2]
[311915385,1705499443258,-150.0,0.00020091,2]
[311915387,1705499443266,-1124.20523229,0.00021,2]
[311916400,1705499477796,320.00621709,0.00019377,2]
[311916401,1705499479455,154.9690062,0.000189,2]
[311916402,1705499501454,154.9690062,0.000189,2]
[311916403,1705499519457,170.78753123,0.0001701,2]
[311916416,1705499560741,195.995406,0.00018886,2]
[311916418,1705499570244,312.4212651,0.000189,2]
[311916421,1705499598717,890.35403735,0.00014829,2]
[311916422,1705499598898,104.50212483,0.0001701,2]
[311916423,1705499598925,3111.13140355,0.0001701,2]
[311916424,1705499640710,1467.5417489,0.00014829,2]
[311916474,1705500080410,475.03025336,0.00019772,5]
[311916476,1705500127688,209.21,0.00019772,7]
[311916477,1705500141483,263.21986175,0.00019771,7]
[311916480,1705500285011,574.80717737,0.0001976,5]
[311916492,1705500379952,366.43795788,0.00019167,2]
[311916493,1705500380282,454.58976323,0.0001976,5]
[311916509,1705500453594,303.92894519,0.00019447,2]
[311916510,1705500494584,186.490029,0.00018523,2]
[311916515,1705500523078,4564.46991548,0.00019493,3]
[311916522,1705500549979,3481.1678536,0.000191,2]
[311916779,1705500638426,-3000.06029165,0.00019445,3]
[311916781,1705500638438,-277.51762076,0.00019445,3]
[311916787,1705500638489,-16360.95208759,0.00019445,3]
[311916790,1705500638498,-81144.18594681,0.00019455,2]
[311916793,1705500638508,-1739.36513462,0.00019455,2]
[311916795,1705500638519,-154.9690062,0.00019455,2]
[311916797,1705500638528,-154.9690062,0.00019455,2]
[311916799,1705500638539,-15900.59154899,0.00019456,2]
[311916802,1705500638549,-361.16356305,0.00019456,2]
[311916804,1705500638558,-2703.02323388,0.00019456,2]
[311916805,1705500638567,-154.9690062,0.00019456,3]
[311916807,1705500638577,-1580.81290041,0.00019457,2]
[311916809,1705500638587,-1241.4576912,0.00019457,2]
[311916811,1705500638597,-253.87912407,0.00019457,2]
[311916813,1705500638607,-21667.37739351,0.00019458,2]
[311916815,1705500638618,-322.82895147,0.00019458,2]
[311916817,1705500638628,-7953.18776953,0.00019458,2]
[311916819,1705500638637,-2037.3106961,0.00019458,2]
[311916821,1705500638646,-246.39706185,0.00019467,2]
[311916823,1705500638658,-162.97782864,0.00019468,2]
[311916825,1705500638667,-20856.74094131,0.00019468,2]
[311916827,1705500638680,-19683.9294639,0.00019468,2]
[311916829,1705500638689,-861.81666274,0.00019468,2]
[311916831,1705500638698,-154.9690062,0.00019468,2]
[311916833,1705500638707,-175.07495536,0.00019468,2]
[311916835,1705500638718,-594.63225978,0.00019468,2]
[311916837,1705500638727,-3742.63964853,0.00019469,2]
[311916839,1705500638737,-688.67953377,0.00019469,2]
[311916841,1705500638747,-178.75171089,0.00019469,2]
[311916843,1705500638756,-36931.7299546,0.00019469,2]
[311916845,1705500638766,-2812.5349439,0.00019471,2]
[311916847,1705500638775,-1292.60980594,0.00019471,2]
[311916849,1705500638784,-1112.59905219,0.000195,2]
[311916851,1705500638793,-902.37527688,0.00019558,2]
[311916853,1705500638802,-152.02968984,0.00019661,2]
[311916855,1705500638812,-155.44861642,0.00019661,2]
[311916857,1705500638822,-10515.69454875,0.0001975,2]
[311916859,1705500638832,-198.86702102,0.0001976,2]
[311916861,1705500638842,-873.46854379,0.0001976,2]
[311916863,1705500638851,-245.97076083,0.0001976,2]
[311916865,1705500638862,-466.65800678,0.0001976,2]
[311916867,1705500638872,-449.77827105,0.0001976,2]
[311916869,1705500638881,-470.04658801,0.0001976,2]
[311916871,1705500638891,-285.07735822,0.0001976,2]
[311916873,1705500638900,-3126.02728391,0.0001976,2]
[311916875,1705500638909,-155.29898832,0.0001976,2]
[311916877,1705500638923,-1038.10415225,0.0001976,2]
[311916879,1705500638933,-207.77198332,0.0001976,2]
[311916881,1705500638942,-224.09773341,0.0001976,2]
[311916883,1705500638952,-534.48605766,0.0001976,2]
[311916885,1705500638961,-2857.64942533,0.0001976,2]
[311916887,1705500638971,-155.43565861,0.00019761,2]
[311916890,1705500638982,-1222.24566774,0.00019761,2]
[311916891,1705500638992,-213.13739698,0.00019762,2]
[311916893,1705500639002,-160.91500168,0.00019762,2]
[311916895,1705500639012,-155.88506777,0.00019762,2]
[311916898,1705500639022,-294.87990361,0.00019762,2]
[311916899,1705500639031,-154.98450155,0.00019763,2]
[311916901,1705500639041,-193.28282234,0.00019763,2]
[311916903,1705500639050,-12748.42528674,0.00019763,2]
[311916906,1705500639060,-2520.85498973,0.0001977,2]
[311916907,1705500639070,-224.79143074,0.0001977,2]
[311916909,1705500639079,-155.11937889,0.0001977,2]
[311916911,1705500639088,-874.96050946,0.0001977,2]
[311916913,1705500639099,-521.18978843,0.0001977,2]
[311916915,1705500639108,-1002.52715388,0.00019771,2]
[311916917,1705500639118,-328.98598783,0.00019771,2]
[311916919,1705500639127,-164.20437839,0.00019771,2]
[311916921,1705500639136,-201406.41225439,0.00019772,2]
[311916923,1705500639146,-2071.696278,0.00019772,2]
[311916925,1705500639155,-154.98450155,0.00019772,2]
[311916927,1705500639164,-156.49556393,0.00019772,2]
[311916929,1705500639175,-184.74016345,0.00019772,2]
[311916931,1705500639184,-155.0,0.00019772,2]
[311916933,1705500639194,-935.82213156,0.00019772,2]
[311916935,1705500639203,-156.10545261,0.00019772,2]
[311916937,1705500639212,-165.33584061,0.00019772,2]
[311916939,1705500639221,-166.65370388,0.00019772,2]
[311916941,1705500639230,-261.85697331,0.00019772,2]
[311916943,1705500639239,-1694.70771461,0.00019772,2]
[311916945,1705500639248,-679.24429502,0.00019772,2]
[311916947,1705500639257,-18718.26996216,0.00019772,2]
[311916949,1705500639266,-1588.5756211,0.00019772,2]
[311916951,1705500639275,-2428.97769505,0.00019772,2]
[311916953,1705500639284,-191.16884209,0.00019772,2]
[311916955,1705500639293,-6124.12577825,0.00019772,2]
[311916956,1705500639302,-155.26338395,0.00019772,2]
[311916958,1705500639312,-2101.24804165,0.00019773,2]
[311916960,1705500639322,-373.80750688,0.00019999,2]
[311916962,1705500639331,-1265.41823027,0.0002,2]
[311916964,1705500639340,-403.86820017,0.0002,2]
[311916966,1705500639350,-1196.71363385,0.0002,2]
[311916968,1705500639359,-156.08728379,0.0002,2]
[311916970,1705500639368,-677.30340506,0.0002,2]
[311916972,1705500639377,-237.84642437,0.0002,2]
[311916974,1705500639386,-2995.12470388,0.0002,2]
[311916976,1705500639395,-154.98450155,0.0002,2]
[311916978,1705500639405,-154.9690062,0.0002,2]
[311916980,1705500639415,-176.8605585,0.0002,2]
[311916982,1705500639427,-154.9690062,0.0002,2]
[311916984,1705500639436,-154.9690062,0.0002,2]
[311916986,1705500639449,-573.95326525,0.0002,2]
[311916988,1705500639458,-300.0,0.0002,2]
[311916990,1705500639467,-156.63599417,0.0002,2]
[311916992,1705500639476,-303.92894519,0.00020039,2]
[311917001,1705500639552,-303.92894519,0.0002063,2]
[311917003,1705500639562,-153.0,0.00020822,2]
[311917005,1705500639571,-153.0,0.00020822,2]
[311917007,1705500639580,-691.47798069,0.00021,2]
[311917009,1705500639590,-200.0,0.00021,2]
[311917011,1705500639599,-327.18048,0.00021,2]
[311917013,1705500639609,-153.0,0.00021,2]
[311917015,1705500639618,-153.0,0.00021,2]
[311917017,1705500639628,-400.17305144,0.00021099,2]
[311917019,1705500639639,-500.0,0.000211,2]